bitfinex/quotes_BTCUSD_20230906
["timestamp","ask_amount","ask_price","bid_price","bid_amount"]
[1694026148204,1.675302,25735.0,25733.0,0.05389699]
[1694026148408,0.121,25734.0,25733.0,0.05389699]
[1694026148799,1.675362,25734.0,25733.0,0.05389699]
[1694026149029,1.9006125,25734.0,25733.0,0.05389699]
[1694026149241,1.9006125,25734.0,25733.0,0.01989699]
[1694026149242,3.18543877,25734.0,25733.0,0.01989699]
[1694026149457,3.26763877,25734.0,25733.0,0.01989699]
[1694026149633,3.26597877,25734.0,25733.0,0.02089699]
[1694026149852,3.26403877,25734.0,25733.0,0.01989699]
[1694026150081,3.26349877,25734.0,25733.0,0.01989699]
[1694026150292,3.26349877,25734.0,25733.0,0.02089699]
[1694026150293,3.27887877,25734.0,25733.0,0.02089699]
[1694026150471,1.28482627,25734.0,25733.0,0.01989699]
[1694026150671,1.28482627,25734.0,25733.0,0.02089699]
[1694026150936,0.52764527,25734.0,25733.0,0.02089699]
[1694026151179,0.54864527,25734.0,25733.0,0.02289699]
[1694026151669,0.041,25734.0,25733.0,0.02289699]
[1694026152339,0.021,25734.0,25733.0,0.02189699]
[1694026152811,0.041,25734.0,25733.0,0.02289699]
[1694026153019,0.021,25734.0,25733.0,0.02189699]
[1694026153242,0.041,25734.0,25733.0,0.02289699]
[1694026153449,0.980309,25734.0,25733.0,0.02289699]
[1694026154091,2.723351,25734.0,25733.0,0.02289699]
[1694026154544,2.722871,25734.0,25733.0,0.02289699]
[1694026154773,2.722451,25734.0,25733.0,0.02289699]
[1694026154981,2.711551,25734.0,25733.0,0.02289699]
[1694026155202,2.711611,25734.0,25733.0,0.02289699]
[1694026155407,2.524671,25734.0,25733.0,0.02289699]
[1694026156177,2.599851,25734.0,25733.0,0.02289699]
[1694026156425,3.10641627,25734.0,25733.0,0.02289699]
[1694026156633,3.11127627,25734.0,25733.0,0.02289699]
[1694026156868,3.11019627,25734.0,25733.0,0.02289699]
[1694026157101,3.11109627,25734.0,25733.0,0.02289699]
[1694026157373,3.11073627,25734.0,25733.0,0.02289699]
[1694026157648,3.11049627,25734.0,25733.0,0.02289699]
[1694026157921,3.12867627,25734.0,25733.0,0.02289699]
[1694026158153,3.12933627,25734.0,25733.0,0.02289699]
[1694026158365,3.14840036,25734.0,25733.0,0.02289699]
[1694026158685,3.17488036,25734.0,25733.0,0.02289699]
[1694026158883,4.52792136,25734.0,25733.0,0.02289699]
[1694026159117,4.39172136,25734.0,25733.0,0.02289699]
[1694026159354,4.38446136,25734.0,25733.0,0.02289699]
[1694026159587,4.38476136,25734.0,25733.0,0.02289699]
[1694026159822,4.38344136,25734.0,25733.0,0.02289699]
[1694026159955,4.38356136,25734.0,25733.0,0.02289699]
[1694026160211,4.38338136,25734.0,25733.0,0.02289699]
[1694026160415,4.38314136,25734.0,25733.0,0.02289699]
[1694026160610,4.38320136,25734.0,25733.0,0.02289699]
[1694026160789,4.38296136,25734.0,25733.0,0.02289699]
[1694026160984,4.38272136,25734.0,25733.0,0.02289699]
[1694026161195,4.81524136,25734.0,25733.0,0.02289699]
[1694026161428,4.95690136,25734.0,25733.0,0.02289699]
[1694026161640,4.95714136,25734.0,25733.0,0.02289699]
[1694026161888,4.82160136,25734.0,25733.0,0.02289699]
[1694026162101,4.81080136,25734.0,25733.0,0.02289699]
[1694026162304,4.80762136,25734.0,25733.0,0.02289699]
[1694026162551,4.79104136,25734.0,25733.0,0.02189699]
[1694026162732,4.80560136,25734.0,25733.0,0.01989699]
[1694026162882,4.80560136,25734.0,25733.0,0.02089699]
[1694026162883,4.82894136,25734.0,25733.0,0.02089699]
[1694026163263,5.02298136,25734.0,25733.0,0.02089699]
[1694026163492,5.02298136,25734.0,25733.0,0.01989699]
[1694026163493,5.15370136,25734.0,25733.0,0.01989699]
[1694026163704,5.1873587,25734.0,25733.0,0.01989699]
[1694026163925,5.4022987,25734.0,25733.0,0.01989699]
[1694026164121,5.2073587,25734.0,25733.0,0.01989699]
[1694026164341,5.1830387,25734.0,25733.0,0.01989699]
[1694026164541,5.2117187,25734.0,25733.0,0.01989699]
[1694026164742,5.1965987,25734.0,25733.0,0.01989699]
[1694026164951,5.1945587,25734.0,25733.0,0.01989699]
[1694026165172,5.1940787,25734.0,25733.0,0.01989699]
[1694026165394,5.2064387,25734.0,25733.0,0.01989699]
[1694026165592,5.1827987,25734.0,25733.0,0.01989699]
[1694026165796,5.1826787,25734.0,25733.0,0.01989699]
[1694026166024,5.2067987,25734.0,25733.0,0.01989699]
[1694026166448,5.2066787,25734.0,25733.0,0.01989699]
[1694026166648,5.2069187,25734.0,25733.0,0.01989699]
[1694026166850,1.9339,25732.0,25731.0,0.01989699]
[1694026167052,7.03740054,25732.0,25731.0,0.01989699]
[1694026167255,7.36248054,25732.0,25731.0,0.01989699]
[1694026167460,7.35348054,25732.0,25731.0,0.01989699]
[1694026167666,7.36824054,25732.0,25731.0,0.01989699]
[1694026167805,7.38240054,25732.0,25731.0,0.01989699]
[1694026168010,7.38372054,25732.0,25731.0,0.01989699]
[1694026168223,1.4339,25728.0,25727.0,0.01989699]
[1694026168419,6.92011327,25728.0,25727.0,0.01989699]
[1694026168626,7.53415327,25728.0,25727.0,0.01989699]
[1694026168827,7.55007327,25728.0,25727.0,0.01989699]
[1694026169062,7.55151327,25728.0,25727.0,0.01989699]
[1694026169261,7.54407327,25728.0,25727.0,0.01989699]
[1694026169470,7.54407327,25728.0,25727.0,9.9e-07]
[1694026169471,7.73983327,25728.0,25727.0,9.9e-07]
[1694026169666,6.84619327,25728.0,25727.0,9.9e-07]
[1694026169882,7.92715327,25728.0,25727.0,9.9e-07]
[1694026170116,8.12323327,25728.0,25727.0,9.9e-07]
[1694026170361,8.15581061,25728.0,25727.0,9.9e-07]
[1694026170551,0.026,25722.0,25721.0,0.01989699]
[1694026170756,3.74042127,25722.0,25721.0,0.01989699]
[1694026170956,3.85136127,25722.0,25721.0,0.01989699]
[1694026171162,3.84140127,25722.0,25721.0,0.01989699]
[1694026171368,3.84950127,25722.0,25721.0,0.01989699]
[1694026171585,3.84746127,25722.0,25721.0,0.01989699]
[1694026171796,3.84884127,25722.0,25721.0,0.01989699]
[1694026171994,3.86945827,25722.0,25721.0,0.01989699]
[1694026172200,4.27557827,25722.0,25721.0,0.01989699]
[1694026172565,4.29459827,25722.0,25721.0,0.01989699]
[1694026172771,4.29399827,25722.0,25721.0,0.01989699]
[1694026172976,4.29441827,25722.0,25721.0,0.01989699]
[1694026173181,4.29309827,25722.0,25721.0,0.01989699]
[1694026173385,4.31978209,25722.0,25721.0,0.01989699]
[1694026173591,4.33084209,25722.0,25721.0,0.01989699]
[1694026173807,4.32928209,25722.0,25721.0,0.01989699]
[1694026174019,4.34236209,25722.0,25721.0,0.01989699]
[1694026174230,4.33828209,25722.0,25721.0,0.01989699]
[1694026174441,0.5339,25721.0,25720.0,0.01989699]
[1694026174648,4.08391254,25721.0,25720.0,0.01989699]
[1694026174856,4.36459254,25721.0,25720.0,0.01989699]
[1694026175064,4.35907254,25721.0,25720.0,0.01989699]
[1694026175237,4.35619254,25721.0,25720.0,0.01989699]
[1694026175440,4.38175254,25721.0,25720.0,0.01989699]
[1694026175643,3.77819254,25721.0,25720.0,0.01989699]
[1694026175848,3.74343254,25721.0,25720.0,0.01989699]
[1694026176106,3.27666727,25721.0,25720.0,0.01989699]
[1694026176320,3.29036727,25721.0,25720.0,0.01989699]
[1694026176535,3.35834727,25721.0,25720.0,0.01989699]
[1694026176747,3.38216727,25721.0,25720.0,0.01989699]
[1694026176958,3.39224727,25721.0,25720.0,0.01989699]
[1694026177172,4.18763254,25721.0,25720.0,0.01989699]
[1694026177382,4.57043254,25721.0,25720.0,0.01989699]
[1694026177570,4.38035254,25721.0,25720.0,0.01989699]
[1694026177774,4.37237254,25721.0,25720.0,0.01989699]
[1694026177976,4.38125254,25721.0,25720.0,0.01989699]
[1694026178218,4.35869254,25721.0,25720.0,0.01989699]
[1694026178427,4.40651254,25721.0,25720.0,0.01989699]
[1694026178631,4.58015254,25721.0,25720.0,0.01989699]
[1694026178843,4.55687254,25721.0,25720.0,0.01989699]
[1694026179050,4.55639254,25721.0,25720.0,0.01989699]
[1694026179259,4.55447254,25721.0,25720.0,0.01989699]
[1694026179466,4.55543254,25721.0,25720.0,0.01989699]
[1694026179679,4.57823254,25721.0,25720.0,0.01989699]
[1694026179888,4.57739254,25721.0,25720.0,0.01989699]
[1694026180099,4.70655254,25721.0,25720.0,0.01989699]
[1694026180307,4.70799254,25721.0,25720.0,0.01989699]
[1694026180513,4.72623254,25721.0,25720.0,0.01989699]
[1694026180715,4.70559254,25721.0,25720.0,0.01989699]
[1694026180922,4.70595254,25721.0,25720.0,0.01989699]
[1694026181338,4.70619254,25721.0,25720.0,0.01989699]
[1694026181545,4.69011254,25721.0,25720.0,0.01989699]
[1694026181727,4.69467254,25721.0,25720.0,0.01989699]
[1694026181937,4.57727254,25721.0,25720.0,0.01989699]
[1694026182149,3.82481254,25721.0,25720.0,0.01989699]
[1694026182355,4.23061254,25721.0,25720.0,0.01989699]
[1694026182563,4.23175254,25721.0,25720.0,0.01989699]
[1694026182775,4.23319254,25721.0,25720.0,0.01989699]
[1694026182982,3.82595254,25721.0,25720.0,0.01989699]
[1694026183194,3.78429254,25721.0,25720.0,0.01989699]
[1694026183398,3.70101254,25721.0,25720.0,0.01989699]
[1694026183621,3.76803254,25721.0,25720.0,0.01989699]
[1694026183836,3.76845254,25721.0,25720.0,0.01989699]
[1694026184045,3.76935254,25721.0,25720.0,0.01989699]
[1694026184321,3.76791254,25721.0,25720.0,0.01989699]
[1694026184574,3.78045254,25721.0,25720.0,0.01989699]
[1694026184814,3.80373254,25721.0,25720.0,0.01989699]
[1694026185071,3.80919254,25721.0,25720.0,0.01989699]
[1694026185378,3.78591254,25721.0,25720.0,0.01989699]
[1694026185615,4.19771254,25721.0,25720.0,0.01989699]
[1694026185849,4.56347254,25721.0,25720.0,0.01989699]
[1694026186120,4.56179254,25721.0,25720.0,0.01989699]
[1694026186335,5.30671254,25721.0,25720.0,0.01989699]
[1694026186580,5.30491254,25721.0,25720.0,0.01989699]
[1694026186836,4.88921254,25721.0,25720.0,0.01989699]
[1694026187040,4.71863254,25721.0,25720.0,0.01989699]
[1694026187246,4.69277254,25721.0,25720.0,0.01989699]
[1694026187458,4.68989254,25721.0,25720.0,0.01989699]
[1694026187727,4.69095254,25721.0,25720.0,0.01989699]
[1694026187949,4.66989254,25721.0,25720.0,0.01989699]
[1694026188172,4.66791254,25721.0,25720.0,0.01989699]
[1694026188379,4.69311254,25721.0,25720.0,0.01989699]
[1694026188593,4.71903679,25721.0,25720.0,0.01989699]
[1694026188806,4.72125679,25721.0,25720.0,0.01989699]
[1694026189081,4.71819679,25721.0,25720.0,0.01989699]
[1694026189326,4.72755679,25721.0,25720.0,0.01989699]
[1694026189535,4.31979152,25721.0,25720.0,0.01989699]
[1694026189739,4.31349152,25721.0,25720.0,0.01989699]
[1694026189950,0.46574952,25721.0,25720.0,0.1745551]
[1694026190200,0.07910425,25721.0,25720.0,0.01989699]
[1694026190447,0.07410425,25721.0,25720.0,0.01989699]
[1694026190712,0.07410425,25721.0,25720.0,0.05389699]
[1694026190954,0.07410425,25721.0,25720.0,0.17489699]
[1694026190955,0.05490425,25721.0,25720.0,0.17489699]
[1694026191170,0.02610425,25721.0,25720.0,0.17489699]
[1694026191402,0.02710425,25721.0,25720.0,0.18689699]
[1694026191646,2.332408,25725.0,25720.0,0.17489699]
[1694026191862,2.71905327,25725.0,25720.0,0.2295551]
[1694026192070,0.002,25721.0,25720.0,0.2295551]
[1694026192273,0.002,25721.0,25720.0,0.07489699]
[1694026192477,0.004,25721.0,25720.0,0.07789699]
[1694026192685,0.002,25721.0,25720.0,0.05689699]
[1694026192895,1.94157327,25725.0,25720.0,0.05389699]
[1694026193102,1.94757327,25725.0,25720.0,0.2095551]
[1694026193307,0.003,25721.0,25720.0,0.2125551]
[1694026193516,0.003,25721.0,25720.0,0.05789699]
[1694026193741,2.3226955,25725.0,25720.0,0.05489699]
[1694026193950,2.3286955,25725.0,25720.0,0.2105551]
[1694026194187,2.3226955,25725.0,25720.0,0.2095551]
[1694026194394,0.13166704,25724.0,25720.0,0.2095551]
[1694026194599,0.13166704,25724.0,25720.0,0.07589699]
[1694026194600,0.002,25721.0,25720.0,0.07589699]
[1694026194813,0.13166704,25724.0,25720.0,0.05489699]
[1694026195219,0.13166704,25724.0,25720.0,0.05589699]
[1694026195444,0.999198,25727.0,25722.0,0.034]
[1694026195445,0.221324,25727.0,25722.0,0.034]
[1694026195653,0.38664527,25727.0,25724.0,0.034]
[1694026195863,0.38664527,25727.0,25724.0,0.18865811]
[1694026196284,1.80913261,25728.0,25724.0,0.034]
[1694026196489,0.18351326,25727.0,25724.0,0.18865811]
[1694026196729,0.96090726,25727.0,25724.0,0.034]
[1694026197144,0.98490726,25727.0,25724.0,0.034]
[1694026197348,1.76230126,25727.0,25724.0,0.034]
[1694026197557,1.76230126,25727.0,25722.0,0.034]
[1694026197558,0.41264527,25726.0,25722.0,0.034]
[1694026197775,0.41264527,25726.0,25721.0,0.2147]
[1694026197776,2.332377,25725.0,25721.0,0.2147]
[1694026197990,0.1615,25722.0,25721.0,0.2147]
[1694026198208,2.88077727,25722.0,25721.0,0.2147]
[1694026198411,3.73854127,25722.0,25720.0,0.01989699]
[1694026198617,0.38664527,25721.0,25720.0,0.01989699]
[1694026198825,2.71936727,25721.0,25720.0,0.01989699]
[1694026199459,1.16421927,25721.0,25720.0,0.01989699]
[1694026199654,1.16421927,25721.0,25720.0,0.02089699]
[1694026200242,0.001,25721.0,25720.0,0.02189699]
[1694026200448,0.001,25721.0,25720.0,0.05589699]
[1694026200646,0.001,25721.0,25720.0,1.1773491]
[1694026200853,0.001,25721.0,25720.0,1.9539531]
[1694026201057,0.001,25721.0,25720.0,2.7345571]
[1694026201416,0.001,25721.0,25720.0,2.8245188]
[1694026201793,0.003,25721.0,25720.0,2.8445188]
[1694026202001,0.002,25721.0,25720.0,2.8435188]
[1694026202189,0.004,25721.0,25720.0,3.6251228]
[1694026202607,1.91574761,25728.0,25722.0,0.034]
[1694026202608,0.86436261,25728.0,25722.0,0.034]
[1694026202810,1.25099288,25728.0,25723.0,0.18865811]
[1694026203017,0.47362788,25728.0,25723.0,0.18865811]
[1694026203223,0.03161195,25727.0,25723.0,0.18865811]
[1694026203438,1.58641795,25727.0,25723.0,0.034]
[1694026203814,0.80900695,25727.0,25723.0,0.034]
[1694026204021,0.03161195,25727.0,25723.0,0.034]
[1694026204678,0.05061195,25727.0,25723.0,0.036]
[1694026204813,0.05061195,25727.0,25724.0,0.034]
[1694026205020,0.05061195,25727.0,25725.0,0.034]
[1694026205594,2.38279095,25727.0,25725.0,0.034]
[1694026205825,2.83787334,25727.0,25725.0,0.034]
[1694026206038,0.38664527,25726.0,25725.0,0.034]
[1694026206248,2.71891427,25726.0,25725.0,0.034]
[1694026206454,2.74562435,25726.0,25725.0,0.034]
[1694026206663,2.74562435,25726.0,25725.0,0.035]
[1694026206885,2.96570261,25726.0,25725.0,0.035]
[1694026207915,2.96570261,25726.0,25725.0,0.036]
[1694026208135,2.96570261,25726.0,25725.0,0.034]
[1694026208321,2.96570261,25726.0,25725.0,0.037]
[1694026208576,2.96570261,25726.0,25725.0,0.003]
[1694026208790,3.23858261,25726.0,25725.0,0.003]
[1694026208996,3.23882261,25726.0,25725.0,0.003]
[1694026209197,3.23552261,25726.0,25725.0,0.003]
[1694026209409,3.23498261,25726.0,25725.0,0.003]
[1694026209613,3.23234261,25726.0,25725.0,0.003]
[1694026209826,3.23900261,25726.0,25725.0,0.004]
[1694026210027,3.23450261,25726.0,25725.0,0.004]
[1694026210206,3.23252261,25726.0,25725.0,0.004]
[1694026210415,3.23270261,25726.0,25725.0,0.004]
[1694026210621,3.23270261,25726.0,25725.0,0.001]
[1694026210622,3.23684261,25726.0,25725.0,0.001]
[1694026210833,3.24216261,25726.0,25725.0,0.002]
[1694026210963,3.23070261,25726.0,25725.0,0.001]
[1694026211164,3.23076261,25726.0,25725.0,0.001]
[1694026211370,3.23070261,25726.0,25725.0,0.001]
[1694026211702,3.23076261,25726.0,25725.0,0.001]
[1694026211942,3.23988261,25726.0,25725.0,0.002]
[1694026212131,3.27402261,25726.0,25725.0,0.002]
[1694026212330,3.27666261,25726.0,25725.0,0.002]
[1694026212503,3.28212261,25726.0,25725.0,0.002]
[1694026212686,3.28164261,25726.0,25725.0,0.002]
[1694026212891,3.27972261,25726.0,25725.0,0.002]
[1694026213109,3.28464261,25726.0,25725.0,0.002]
[1694026213327,4.06458561,25726.0,25725.0,0.002]
[1694026213500,4.06704561,25726.0,25725.0,0.002]
[1694026213740,4.06722561,25726.0,25725.0,0.002]
[1694026213905,4.06518561,25726.0,25725.0,0.002]
[1694026214116,4.06512561,25726.0,25725.0,0.002]
[1694026214363,4.05390561,25726.0,25725.0,0.001]
[1694026214574,4.01774561,25726.0,25725.0,0.002]
[1694026214782,4.02806561,25726.0,25725.0,0.002]
[1694026214987,4.02806561,25726.0,25725.0,0.004]
[1694026214988,4.05082561,25726.0,25725.0,0.004]
[1694026215196,4.05082561,25726.0,25725.0,0.002]
[1694026215197,4.02772561,25726.0,25725.0,0.002]
[1694026215412,4.05244561,25726.0,25725.0,0.004]
[1694026215610,4.05316561,25726.0,25725.0,0.004]
[1694026215822,4.07392561,25726.0,25725.0,0.004]
[1694026216026,4.06738561,25726.0,25725.0,0.004]
[1694026216432,4.06594561,25726.0,25725.0,0.004]
[1694026216634,4.06552561,25726.0,25725.0,0.004]
[1694026216841,4.06684561,25726.0,25725.0,0.004]
[1694026217062,4.06606561,25726.0,25725.0,0.004]
[1694026217315,4.06204561,25726.0,25725.0,0.004]
[1694026217575,3.82366735,25726.0,25725.0,0.004]
[1694026217834,3.82552735,25726.0,25725.0,0.004]
[1694026218068,3.85624735,25726.0,25725.0,0.004]
[1694026218312,3.85576735,25726.0,25725.0,0.004]
[1694026218524,4.24055262,25726.0,25725.0,0.004]
[1694026218732,4.24019262,25726.0,25725.0,0.004]
[1694026219073,2.81862435,25726.0,25725.0,0.004]
[1694026221092,2.89530435,25726.0,25725.0,0.004]
[1694026221324,2.90238435,25726.0,25725.0,0.004]
[1694026221578,2.90376435,25726.0,25725.0,0.004]
[1694026221813,2.90340435,25726.0,25725.0,0.004]
[1694026222059,2.90058435,25726.0,25725.0,0.004]
[1694026222314,3.45130962,25726.0,25725.0,0.004]
[1694026222530,3.45172962,25726.0,25725.0,0.004]
[1694026222992,3.44746962,25726.0,25725.0,0.004]
[1694026223188,3.44788962,25726.0,25725.0,0.004]
[1694026223402,3.44734962,25726.0,25725.0,0.004]
[1694026223598,3.46390962,25726.0,25725.0,0.004]
[1694026223803,3.45838962,25726.0,25725.0,0.004]
[1694026224004,3.45862962,25726.0,25725.0,0.004]
[1694026224204,3.45868962,25726.0,25725.0,0.004]
[1694026224417,3.45838962,25726.0,25725.0,0.004]
[1694026224712,3.49138962,25726.0,25725.0,0.004]
[1694026224903,3.65224962,25726.0,25725.0,0.004]
[1694026225122,3.64240962,25726.0,25725.0,0.004]
[1694026225329,3.63496962,25726.0,25725.0,0.004]
[1694026225530,3.63412962,25726.0,25725.0,0.004]
[1694026225742,3.63304962,25726.0,25725.0,0.004]
[1694026226011,3.63268962,25726.0,25725.0,0.004]
[1694026226202,3.63340962,25726.0,25725.0,0.004]
[1694026226411,3.5828039,25726.0,25725.0,0.004]
[1694026226617,3.18715863,25726.0,25725.0,0.004]
[1694026226814,3.05410435,25726.0,25725.0,0.004]
[1694026227079,3.05548435,25726.0,25725.0,0.004]
[1694026227205,2.81862435,25726.0,25725.0,0.004]
[1694026227801,2.88630435,25726.0,25725.0,0.004]
[1694026228007,3.27474962,25726.0,25725.0,0.004]
[1694026228214,3.3711439,25726.0,25725.0,0.004]
[1694026228427,3.53451532,25726.0,25725.0,0.004]
[1694026228636,3.3984439,25726.0,25725.0,0.004]
[1694026228839,3.53613532,25726.0,25725.0,0.004]
[1694026229042,3.3891439,25726.0,25725.0,0.004]
[1694026229250,3.3825439,25726.0,25725.0,0.004]
[1694026229465,3.3779239,25726.0,25725.0,0.004]
[1694026229652,3.27876962,25726.0,25725.0,0.004]
[1694026229852,3.27990962,25726.0,25725.0,0.004]
[1694026230085,3.3729439,25726.0,25725.0,0.004]
[1694026230298,3.28080962,25726.0,25725.0,0.004]
[1694026230480,3.28074962,25726.0,25725.0,0.004]
[1694026230652,3.28026962,25726.0,25725.0,0.004]
[1694026230861,3.28056962,25726.0,25725.0,0.004]
[1694026231108,2.89182435,25726.0,25725.0,0.004]
[1694026231257,2.97843863,25726.0,25725.0,0.004]
[1694026231462,2.97759863,25726.0,25725.0,0.004]
[1694026231698,2.91009863,25726.0,25725.0,0.004]
[1694026231902,2.81862435,25726.0,25725.0,0.004]
[1694026232421,3.20526962,25726.0,25725.0,0.004]
[1694026232963,3.18526962,25726.0,25725.0,0.004]
[1694026233171,3.27726962,25726.0,25725.0,0.004]
[1694026233570,3.3758239,25726.0,25725.0,0.004]
[1694026233780,3.3726439,25726.0,25725.0,0.004]
[1694026233983,3.3736639,25726.0,25725.0,0.004]
[1694026234228,3.3737239,25726.0,25725.0,0.004]
[1694026234395,3.3709039,25726.0,25725.0,0.004]
[1694026234624,3.3500639,25726.0,25725.0,0.004]
[1694026234809,3.3700639,25726.0,25725.0,0.004]
[1694026235499,2.98235863,25726.0,25725.0,0.004]
[1694026235721,0.07371008,25726.0,25725.0,1.82756411]
[1694026235945,0.07371008,25726.0,25725.0,2.470359]
[1694026236811,0.05071008,25726.0,25725.0,2.468359]
[1694026237020,0.05671008,25726.0,25725.0,1.691906]
[1694026237458,0.02671008,25726.0,25725.0,2.466359]
[1694026237681,0.04071008,25726.0,25725.0,2.468359]
[1694026237897,0.008,25726.0,25725.0,2.467359]
[1694026238108,0.09147428,25730.0,25727.0,0.034]
[1694026238317,0.09147428,25730.0,25727.0,0.18865811]
[1694026238567,0.09147428,25730.0,25727.0,0.034]
[1694026238776,0.2286857,25731.0,25727.0,0.811391]
[1694026238954,0.09147428,25730.0,25727.0,0.96604911]
[1694026239181,0.13721142,25731.0,25727.0,0.96604911]
[1694026239182,0.2286857,25731.0,25727.0,0.811391]
[1694026239397,0.08495675,25730.0,25727.0,0.813391]
[1694026239821,0.08495675,25730.0,25727.0,1.590784]
[1694026240053,0.10895675,25730.0,25727.0,1.592784]
[1694026240264,0.10895675,25730.0,25729.0,0.034]
[1694026240668,0.08495675,25730.0,25729.0,0.034]
[1694026241314,0.06095675,25730.0,25729.0,0.034]
[1694026241721,0.08495675,25730.0,25729.0,0.036]
[1694026242130,0.10895675,25730.0,25729.0,0.038]
[1694026243613,0.048,25730.0,25729.0,0.038]
[1694026245474,0.14850421,25730.0,25729.0,0.038]
[1694026247353,0.23997849,25730.0,25729.0,0.038]
[1694026247556,0.13947428,25730.0,25729.0,0.038]
[1694026248181,2.08072355,25730.0,25729.0,0.004]
[1694026248397,3.21551122,25730.0,25729.0,0.004]
[1694026248601,3.27468836,25730.0,25729.0,0.004]
[1694026248811,3.65827363,25730.0,25729.0,0.004]
[1694026249016,3.65521363,25730.0,25729.0,0.004]
[1694026249226,3.65533363,25730.0,25729.0,0.004]
[1694026249430,3.65185363,25730.0,25729.0,0.004]
[1694026249859,3.63613363,25730.0,25729.0,0.004]
[1694026250079,3.63589363,25730.0,25729.0,0.004]
[1694026250489,3.63577363,25730.0,25729.0,0.004]
[1694026250687,3.64777363,25730.0,25729.0,0.004]
[1694026250893,3.41842793,25730.0,25729.0,0.004]
[1694026251289,3.42142793,25730.0,25729.0,0.004]
[1694026251509,3.42250793,25730.0,25729.0,0.004]
[1694026251717,3.42202793,25730.0,25729.0,0.004]
[1694026251920,3.41914793,25730.0,25729.0,0.004]
[1694026252127,3.41890793,25730.0,25729.0,0.004]
[1694026252333,3.42082793,25730.0,25729.0,0.004]
[1694026252553,3.42100793,25730.0,25729.0,0.004]
[1694026252767,3.41878793,25730.0,25729.0,0.004]
[1694026252981,3.41842793,25730.0,25729.0,0.004]
[1694026253191,3.41830793,25730.0,25729.0,0.004]
[1694026253393,3.41614793,25730.0,25729.0,0.004]
[1694026253598,3.4729738,25730.0,25729.0,0.004]
[1694026253810,3.4766938,25730.0,25729.0,0.004]
[1694026254021,3.4767538,25730.0,25729.0,0.004]
[1694026254208,3.4770538,25730.0,25729.0,0.004]
[1694026254385,3.4769338,25730.0,25729.0,0.004]
[1694026254593,3.4642738,25730.0,25729.0,0.004]
[1694026254792,3.4599538,25730.0,25729.0,0.004]
[1694026254995,3.4586338,25730.0,25729.0,0.004]
[1694026255203,3.4599538,25730.0,25729.0,0.004]
[1694026255377,3.4601338,25730.0,25729.0,0.004]
[1694026255579,3.4597738,25730.0,25729.0,0.004]
[1694026255807,3.4592938,25730.0,25729.0,0.004]
[1694026255965,3.4594138,25730.0,25729.0,0.004]
[1694026256358,3.4700338,25730.0,25729.0,0.004]
[1694026256540,3.4599538,25730.0,25729.0,0.004]
[1694026256848,3.4581538,25730.0,25729.0,0.004]
[1694026257047,3.4586338,25730.0,25729.0,0.004]
[1694026257531,3.4632538,25730.0,25729.0,0.004]
[1694026257745,3.4660138,25730.0,25729.0,0.004]
[1694026257950,3.4660738,25730.0,25729.0,0.004]
[1694026258153,3.4674538,25730.0,25729.0,0.004]
[1694026258360,3.4693738,25730.0,25729.0,0.004]
[1694026258565,3.4699738,25730.0,25729.0,0.004]
[1694026258773,3.4706938,25730.0,25729.0,0.004]
[1694026258980,3.4708138,25730.0,25729.0,0.004]
[1694026259187,3.4707538,25730.0,25729.0,0.004]
[1694026259396,3.4708138,25730.0,25729.0,0.004]
[1694026259603,3.4708738,25730.0,25729.0,0.004]
[1694026260222,3.4678138,25730.0,25729.0,0.004]
[1694026260433,3.4674538,25730.0,25729.0,0.004]
[1694026260652,3.4817938,25730.0,25729.0,0.004]
[1694026260870,3.4627138,25730.0,25729.0,0.004]
[1694026261074,3.4632538,25730.0,25729.0,0.004]
[1694026261260,3.4655338,25730.0,25729.0,0.004]
[1694026261504,3.4655938,25730.0,25729.0,0.004]
[1694026261925,3.4656538,25730.0,25729.0,0.004]
[1694026262343,3.4657138,25730.0,25729.0,0.004]
[1694026262553,3.4652938,25730.0,25729.0,0.004]
[1694026262739,3.4604938,25730.0,25729.0,0.004]
[1694026262939,3.4510138,25730.0,25729.0,0.004]
[1694026263146,3.4513738,25730.0,25729.0,0.004]
[1694026263365,3.4554538,25730.0,25729.0,0.004]
[1694026263578,3.4562938,25730.0,25729.0,0.004]
[1694026263782,3.4559338,25730.0,25729.0,0.004]
[1694026263988,3.4553338,25730.0,25729.0,0.004]
[1694026264199,3.4553938,25730.0,25729.0,0.004]
[1694026264399,3.4552738,25730.0,25729.0,0.004]
[1694026264610,3.4546138,25730.0,25729.0,0.004]
[1694026264811,3.4546738,25730.0,25729.0,0.004]
[1694026265014,3.4547938,25730.0,25729.0,0.004]
[1694026265225,3.4528738,25730.0,25729.0,0.004]
[1694026265433,3.4512538,25730.0,25729.0,0.004]
[1694026265637,3.4489138,25730.0,25729.0,0.004]
[1694026265845,3.4498138,25730.0,25729.0,0.004]
[1694026266052,3.4510738,25730.0,25729.0,0.004]
[1694026266261,1.42336453,25730.0,25729.0,0.004]
[1694026266470,0.91561926,25730.0,25729.0,0.004]
[1694026266673,1.1449225,25730.0,25729.0,0.004]
[1694026268357,2.0433245,25730.0,25729.0,0.004]
[1694026269172,2.42996977,25730.0,25729.0,0.004]
[1694026269588,2.0433245,25730.0,25729.0,0.004]
[1694026269999,2.0433245,25730.0,25729.0,0.00026417]
[1694026270869,1.2660225,25730.0,25727.0,0.02926417]
[1694026271087,0.22933852,25728.0,25727.0,0.02926417]
[1694026271504,0.25829176,25728.0,25727.0,0.02926417]
[1694026271711,0.16655635,25728.0,25727.0,0.02926417]
[1694026271917,0.35855425,25728.0,25727.0,0.02926417]
[1694026272304,0.39055425,25728.0,25727.0,0.03326417]
[1694026272747,3.50555947,25728.0,25727.0,0.03326417]
[1694026272957,3.57935947,25728.0,25727.0,0.03326417]
[1694026273175,3.20780541,25728.0,25727.0,0.004]
[1694026273391,3.19940541,25728.0,25727.0,0.004]
[1694026273605,3.19220541,25728.0,25727.0,0.004]
[1694026273818,3.19094541,25728.0,25727.0,0.004]
[1694026274046,3.18836541,25728.0,25727.0,0.004]
[1694026274274,3.18866541,25728.0,25727.0,0.004]
[1694026274509,3.18836541,25728.0,25727.0,0.004]
[1694026274748,3.18626541,25728.0,25727.0,0.004]
[1694026274999,3.18440541,25728.0,25727.0,0.004]